[Event "15th Tashkent Open Agzamov 2022"]
[Site "Tashkent"]
[Date "2022.05.06"]
[Round "4.3"]
[White "Aditya Mittal"]
[Black "Indjic, Aleksandar"]
[Result "1/2-1/2"]
[ECO "D24"]
[WhiteElo "2490"]
[BlackElo "2621"]
[Annotator "TA"]
[PlyCount "91"]
[EventDate "2022.05.05"]
[EventType "swiss"]
[EventCountry "UZB"]
[SourceTitle "playchess.com"]
[Source "ChessBase"]
[SourceQuality "1"]
[TimeControl "5400+30"]

{[%evp 9,91,2,52,38,35,39,47,45,41,34,45,37,33,23,32,32,21,12,32,16,26,9,61,64,75,58,75,58,74,32,52,25,55,37,28,40,61,63,81,85,92,81,97,47,59,10,56,0,24,21,29,-39,-23,-113,-116,-102,-102,-121,-110,-126,-27,-45,-31,-28,0,0,0,-214,-82,-82,-82,-82,-82,-82,-82,-82,-79,-64,-19,-19,-19,-19,-19,-19]} 1. d4 {[%emt 0:00:09]} Nf6 {[%emt 0:00:49]} 2. c4 {[%emt 0:00:09]} e6 {[%emt 0:00:37]} 3. Nf3 {[%emt 0:00:04]} d5 {[%emt 0:01:03]} 4. Nc3 {[%emt 0:00:04]} dxc4 {[%emt 0:00:49]} 5. e4 {[%emt 0:00:07][%cal Be2e4,Be4e5][%mdl 32]} b5 {[%emt 0:00:22]} (5... Bb4 $11) 6. e5 $14 {[%emt 0:00:04] D24: Queen's Gambit Accepted: 3 Nf3 Nf6 4 Nc3.} Nd5 {[%emt 0:00:11]} 7. Nxb5 {[%emt 0:00:05]} Nb6 {[%emt 0:00:13]} 8. Be2 {[%emt 0:00:05] White is slightly better.} Nc6 $1 {[%emt 0:01:09] 8...Nc6 scores better than 8...Be7.} 9. O-O {[%emt 0:00:10]} Be7 {[%emt 0:00:21]} 10. Be3 {[%emt 0:00:07]} O-O {[%emt 0:08:39]} 11. Nc3 {[%emt 0:00:12]} Rb8 {[%emt 0:04:16]} 12. b3 {[%emt 0:00:07]} cxb3 {[%emt 0:01:31]} 13. axb3 {[%emt 0:00:02]} Bb7 {[%emt 0:00:42]} 14. Qb1 {[%emt 0:00:06] [#]} a5 $146 {[%emt 0:05:11]} ({Predecessor:} 14... Nb4 15. Rxa7 N6d5 16. Nxd5 Bxd5 17. Nd2 Nc6 18. Ra4 Bb4 19. Ne4 Qh4 20. Bf3 h6 {½-½ (35) Yakubboev,N (2604)-Maghsoodloo,P (2695) Sharjah 2021}) 15. Qe4 {[%emt 0:03:35]} Nd5 {[%emt 0:12:44]} (15... Nb4 $11 16. Qg4 Kh8) 16. Nxd5 {[%emt 0:11:33]} exd5 {[%emt 0:00:10]} 17. Qf4 {[%emt 0:03:53] White is more active.} Bc8 {[%emt 0:09:58]} 18. Rfc1 {[%emt 0:02:49]} Qe8 {[%emt 0:03:26]} 19. Rc3 {[%emt 0:05:59]} (19. Qg3 {feels hotter.} f6 20. Bh6 Rf7 21. Bd1) 19... Rb6 {[%emt 0:10:50]} 20. h4 {[%emt 0:08:28][%cal Bh2h4,Bh4h5][%mdl 32]} Nd8 {[%emt 0:01:42]} 21. h5 {[%emt 0:01:52]} (21. Rxa5 $2 Ne6 22. Qh2 Bb4 $19) 21... Ne6 {[%emt 0:02:09]} 22. Qg3 {[%emt 0:01:55]} Ba6 {[%emt 0:00:09]} 23. Bd1 {[%emt 0:15:15]} Qb5 {[%emt 0:08:49]} 24. Rcc1 {[%emt 0:03:18]} (24. Bc2 Bb4 25. Rd3 (25. Bd3 $2 Qd7 $19) 25... Rc6 $17) 24... Kh8 {[%emt 0:17:30]} 25. Bc2 {[%emt 0:01:47]} Bc8 {[%emt 0:03:51]} 26. Bf5 {[%emt 0:03:52]} (26. Nh4 $16) 26... h6 $1 {[%emt 0:00:07]} 27. Kh2 {[%emt 0:16:20]} (27. Nh4 $14) 27... Qa6 $11 {[%emt 0:02:45]} 28. Rc3 {[%emt 0:03:35]} (28. Bc2 $14) 28... Qb7 {[%emt 0:00:46]} 29. Qg4 {[%emt 0:04:31]} (29. Rxa5 $2 Bb4 30. Rac5 Nxc5 31. Bxc8 Qxc8 $19) 29... Qb8 {[%emt 0:02:32]} 30. Nh4 {[%emt 0:03:31]} (30. Rxa5 $2 Bb4 31. Rcc5 c6 $19) ({White should play} 30. Rcc1 $11) 30... c5 $15 {[%emt 0:00:31]} 31. Rac1 {[%emt 0:07:42]} (31. Nf3 $11 {keeps the balance.}) 31... cxd4 $17 {[%emt 0:00:58]} 32. Bxd4 {[%emt 0:02:00]} Nxd4 {[%emt 0:01:00]} (32... Rxb3 $2 33. Ng6+ $1 {[%mdl 512]} fxg6 34. Qxg6 Rxf5 35. Rxc8+ Rf8 36. Rxb8 Rbxb8 37. Qxe6 $18) 33. Rxc8 {[%emt 0:01:11]} ({Not} 33. Qxd4 $2 Rb4 $1 34. Qd3 Rxh4+ $19) 33... Qxe5+ {[%emt 0:00:01]} 34. f4 {[%emt 0:00:14]} Qd6 {[%emt 0:00:14]} (34... Qf6 $1 $17 35. Rxf8+ Bxf8) 35. Nf3 $1 $11 {[%emt 0:02:29] Dancing on a razor blade.} Nxf3+ {[%emt 0:01:04]} ({Don't do} 35... Nxb3 36. Ne5 Bd8 37. Rd1 $16) 36. Qxf3 {[%emt 0:00:02]} Rb8 {[%emt 0:00:11]} 37. R1c6 {[%emt 0:00:39]} Qb4 {[%emt 0:00:14]} 38. Qxd5 $2 {[%emt 0:00:49]} (38. Rxf8+ $11 {and White stays safe.} Rxf8 39. g3) 38... Rbxc8 {[%emt 0:00:12]} ({Resist} 38... Qxb3 39. Qe5 Rfxc8 40. Rxh6+ Kg8 41. Bh7+ Kf8 {[#]} 42. Bc2 $1 $18) (38... Qxf4+ $19 {and Black stays clearly on top.} 39. g3 Qf2+ 40. Kh3 Qf1+ 41. Kh2 Qe2+ 42. Qg2 Qxh5+ 43. Qh3 Rbxc8 $1 44. Rxc8 Qf3 45. Rxf8+ Bxf8) 39. Rxc8 $17 {[%emt 0:00:15]} Qxf4+ {[%emt 0:00:26]} 40. g3 {[%emt 0:00:06]} Qf2+ {[%emt 0:00:11]} 41. Kh3 {[%emt 0:00:04]} Qf1+ {[%emt 0:01:01]} 42. Kg4 {[%emt 0:00:30]} Rxc8 {[%emt 0:01:13]} 43. Bxc8 {[%emt 0:00:01]} Qc1 {[%emt 0:00:21]} 44. Ba6 {[%emt 0:00:58] The position is equal.} Kg8 {[%emt 0:00:59]} 45. Bc4 {[%emt 0:00:48]} Qg5+ {[%emt 0:00:14]} 46. Qxg5 {[%emt 0:00:06] Weighted Error Value: White=0.25 (precise) /Black=0.17 (very precise)} 1/2-1/2

[Event "15th Tashkent Open Agzamov 2022"]
[Site "Tashkent"]
[Date "2022.05.06"]
[Round "4.4"]
[White "Mchedlishvili, Mikheil"]
[Black "Abdurakhmonov, Mukhammadali"]
[Result "1/2-1/2"]
[ECO "A47"]
[WhiteElo "2595"]
[BlackElo "2308"]
[Annotator "TA"]
[PlyCount "41"]
[EventDate "2022.05.05"]
[EventType "swiss"]
[EventCountry "UZB"]
[SourceTitle "playchess.com"]
[Source "ChessBase"]
[SourceQuality "1"]
[TimeControl "5400+30"]

{[%evp 15,41,0,8,5,43,0,79,85,82,60,122,57,32,20,12,11,35,-42,-39,-33,-29,-56,-53,-46,-42,-43,-39,-31]} 1. d4 {[%emt 0:00:06]} d5 {[%emt 0:00:35]} 2. Nf3 {[%emt 0:00:36]} Nf6 {[%emt 0:00:08]} 3. Bf4 {[%emt 0:02:03]} e6 {[%emt 0:05:37]} 4. e3 {[%emt 0:00:59]} Be7 {[%emt 0:01:58]} 5. Nbd2 {[%emt 0:02:05]} Nbd7 {[%emt 0:00:29]} 6. h3 {[%emt 0:04:24]} O-O {[%emt 0:02:53]} 7. Bd3 {[%emt 0:00:39]} b6 {[%emt 0:00:53]} 8. c3 {[%emt 0:07:03]} Bb7 {[%emt 0:08:11]} 9. Qb1 {[%emt 0:01:41] [#] A47: 1 d4 Nf6 2 Nf3 b6: Torre, London and Colle Systems.} Kh8 $146 {[%emt 0:06:46]} ({Predecessor:} 9... c5 10. O-O Re8 11. a4 a6 12. Ne5 h6 13. b4 cxb4 14. cxb4 Nxe5 15. dxe5 Nd7 16. a5 bxa5 17. bxa5 Nc5 18. Bc2 {0-1 (48) Korchmar,V (2451)-Yoo,C (2455) Chess.com INT 2021}) 10. g4 {[%emt 0:05:05][%cal Bg2g4,Bg4g5][%mdl 32]} Bd6 {[%emt 0:06:18]} (10... c5 $11 {remains equal.}) 11. Bxd6 $16 {[%emt 0:11:07] White is better.} cxd6 {[%emt 0:00:07]} 12. g5 {[%emt 0:01:11]} Ne8 {[%emt 0:00:36]} (12... Nh5 $14) 13. h4 {[%emt 0:10:02] White is more active.} (13. Bxh7 $16 {Threatens to win with h4.} e5 14. Bf5) 13... e5 $14 {[%emt 0:09:03]} 14. Bf5 {[%emt 0:03:06]} e4 {[%emt 0:00:59]} 15. Ng1 {[%emt 0:01:42][%cal Bf3g1,Bg1h3,Bh3f4][%mdl 32]} g6 {[%emt 0:00:54]} 16. Bxd7 {[%emt 0:09:28]} (16. Bg4 $14) 16... Qxd7 $15 {[%emt 0:00:13]} 17. Nh3 {[%emt 0:00:28]} f6 {[%emt 0:13:20]} 18. Qd1 {[%emt 0:01:08]} fxg5 {[%emt 0:01:39] Black is slightly better.} 19. hxg5 {[%emt 0:01:05]} Ng7 {[%emt 0:03:22]} 20. Nf4 {[%emt 0:10:32] [#] aiming for Nxg6+.} Qf5 {[%emt 0:03:19]} 21. Qe2 $1 {[%emt 0:26:30] Weighted Error Value: White=0.27 (precise) /Black=0.22 (precise)} 1/2-1/2

[Event "15th Tashkent Open Agzamov 2022"]
[Site "Tashkent"]
[Date "2022.05.06"]
[Round "4.5"]
[White "Nigmatov, Ortik"]
[Black "Romanov, Evgeny"]
[Result "1/2-1/2"]
[ECO "C16"]
[WhiteElo "2463"]
[BlackElo "2573"]
[Annotator "TA"]
[PlyCount "125"]
[EventDate "2022.05.05"]
[EventType "swiss"]
[EventCountry "UZB"]
[SourceTitle "playchess.com"]
[Source "ChessBase"]
[SourceQuality "1"]
[TimeControl "5400+30"]

{[%evp 10,125,40,39,47,0,0,0,18,14,30,24,11,10,43,37,104,86,144,153,160,155,170,117,124,120,116,122,123,118,135,122,131,125,144,97,129,127,142,47,31,13,47,9,51,0,0,-63,77,71,108,86,99,-12,37,0,125,116,112,91,84,8,167,173,154,122,181,93,106,0,0,0,1,0,0,0,0,0,0,0,0,0,0,0,0,0,0,0,0,-8,-8,-8,-8,-8,-8,-8,-8,-64,-8,-8,-8,-20,-32,-261,-18,-26,-27,-41,-8,-8,-8,-8,-8,-8,-8,-8,-8,-8]} 1. e4 {[%emt 0:06:57]} e6 {[%emt 0:00:19]} 2. d4 {[%emt 0:00:14]} d5 {[%emt 0:00:08]} 3. Nc3 {[%emt 0:00:25]} Bb4 {[%emt 0:00:12]} 4. e5 {[%emt 0:00:59]} b6 {[%emt 0:00:29]} 5. Qg4 {[%emt 0:04:04]} Bf8 {[%emt 0:00:12]} 6. Nf3 {[%emt 0:03:07]} Ne7 {[%emt 0:03:44] [#] C16: French: 3 Nc3 Bb4 4 e5: Lines without ...c5.} 7. Nh4 $146 {[%emt 0:11:33]} (7. Be3 $14 {should be considered.}) ({Predecessor:} 7. Bg5 Nbc6 8. a3 Bb7 9. Bd3 Qd7 10. b4 h6 11. Bd2 O-O-O 12. Ne2 f5 13. exf6 gxf6 14. Nf4 {1-0 (43) Vidit,S (2711)-Cvek,R (2518) Czech Republic 2018}) 7... c5 $11 {[%emt 0:13:00]} 8. Bg5 {[%emt 0:09:05]} Qd7 {[%emt 0:15:10]} 9. Bxe7 {[%emt 0:11:58]} h5 {[%emt 0:00:35]} 10. Qg3 {[%emt 0:02:04]} Qxe7 {[%emt 0:00:43]} 11. O-O-O {[%emt 0:11:34]} Bb7 {[%emt 0:15:30]} 12. Bb5+ {[%emt 0:03:38]} Kd8 {[%emt 0:08:24]} (12... Nd7 $1 $14) 13. dxc5 $1 $16 {[%emt 0:01:42]} Qxc5 {[%emt 0:01:26]} (13... a6 $142 14. c6 Nxc6) 14. Qf4 $36 {[%emt 0:02:27][%mdl 2048] White is in control.} a6 {[%emt 0:07:11] [#]} 15. Qxf7 $1 {[%emt 0:08:48]} Qe7 {[%emt 0:01:11] [#]} 16. Qxe7+ {[%emt 0:11:42] Chess con chili.} ({White should try} 16. Be8 $1 $18 {[%mdl 512] And now Ng6 would win.} Bc6 17. Ng6 Bxe8 18. Qxe7+ (18. Nxe7 $2 Bxf7 19. Nexd5 exd5 $19) 18... Bxe7 19. Nxh8) 16... Bxe7 {[%emt 0:00:15]} 17. Ng6 {[%emt 0:00:01]} Rh6 {[%emt 0:00:46]} 18. Bd3 {[%emt 0:00:09]} Bc5 {[%emt 0:00:15]} 19. Rhf1 {[%emt 0:01:40]} Nc6 {[%emt 0:00:45]} 20. a3 {[%emt 0:00:12] Against Nb4} b5 {[%emt 0:04:46][%cal Bb6b5,Bb5b4][%mdl 32]} 21. Ne2 {[%emt 0:00:10]} b4 {[%emt 0:00:33]} 22. a4 {[%emt 0:00:33]} (22. Nef4 $142 Kd7 23. axb4 Bxb4 24. c3) 22... b3 {[%emt 0:08:12]} 23. Nef4 {[%emt 0:00:45] Pair of Knights!} Kd7 {[%emt 0:02:03]} 24. Bf5 {[%emt 0:03:44]} Nd8 $1 $14 {[%emt 0:04:08]} 25. Bh3 {[%emt 0:01:13]} bxc2 {[%emt 0:01:04]} 26. Kxc2 {[%emt 0:00:12]} (26. Rd2 $5 {[%cal Rd2c2]}) 26... Ke8 {[%emt 0:00:48]} 27. Rd3 {[%emt 0:03:49]} ({Of course not} 27. Bxe6 Rxg6 28. Bxd5 (28. Nxg6 Nxe6 29. g3 Bc6 $17) 28... Rb6 $11) (27. g4 $1 $14) 27... d4 $11 {[%emt 0:05:07]} 28. Re1 {[%emt 0:00:28] Inhibits Be4.} (28. b4 $11 Bxb4 29. Rxd4 Rc8+ 30. Kb3) 28... h4 {[%emt 0:00:39]} (28... Kf7 $15 {keeps the upper hand.} 29. Rg3 Bb4) 29. Bg4 {[%emt 0:00:25]} Kf7 {[%emt 0:00:18]} 30. Kb1 {[%emt 0:01:13] 0x0.002c8bc13598dp-1022s more active pieces.} Rc8 {[%emt 0:02:02]} (30... Rxg6 $2 31. Bh5 $18) 31. Bf3 {[%emt 0:00:33]} ({White should play} 31. a5 $16) 31... Ba7 {[%emt 0:01:45]} (31... Rxg6 $2 32. Bh5 $18) (31... Bxf3 $11 {is more appropriate.} 32. Rxf3 Rxg6) 32. Bg4 {[%emt 0:00:32]} Rc4 {[%emt 0:00:35]} (32... Rxg6 $2 33. Bh5 $18) (32... Bc5 $1 $11) 33. a5 $16 {[%emt 0:00:12]} ({Resist} 33. b3 Rb4 $14) 33... Bc6 {[%emt 0:00:38]} (33... Rxg6 $2 34. Bh5 $18) 34. h3 {[%emt 0:00:40]} Bc5 {[%emt 0:01:10]} (34... Rxg6 $2 35. Bh5 $18) 35. b3 {[%emt 0:00:35]} ({Better is} 35. g3 $16) 35... Rc3 $2 {[%emt 0:00:49]} (35... Rb4 $1 $11 {and Black stays safe.}) 36. Rxc3 $18 {[%emt 0:00:23]} dxc3 {[%emt 0:00:01]} 37. Kc2 $1 {[%emt 0:00:20]} Bd4 {[%emt 0:00:45] [#]} (37... Rxg6 $2 38. Bh5 $18) (37... Bb4 $16) 38. f3 {[%emt 0:00:42]} (38. Kd3 $1 $18 {[%cal Rd3d4]} Bxf2 39. Rd1) 38... Bd7 $16 {[%emt 0:01:18]} (38... Rxg6 $2 39. Bh5 $18) 39. Ne2 {[%emt 0:00:36]} Nc6 $1 $11 {[%emt 0:00:43]} 40. Nxd4 {[%emt 0:00:18]} Nxd4+ {[%emt 0:00:08]} 41. Kd3 {[%emt 0:00:02]} Nxb3 {[%emt 0:01:18]} 42. Kxc3 {[%emt 0:00:25]} Nxa5 {[%emt 0:00:11]} 43. Rd1 {[%emt 0:00:17]} Bb5 {[%emt 0:00:50]} 44. Nf4 {[%emt 0:00:20]} Nc4 {[%emt 0:00:20] Inhibits Rd6.} 45. Re1 {[%emt 0:01:27]} Nb6 {[%emt 0:00:37]} 46. Kd4 {[%emt 0:00:34]} g5 {[%emt 0:00:33]} 47. Nxe6 {[%emt 0:00:36]} Rxe6 {[%emt 0:00:26]} 48. Bxe6+ {[%emt 0:00:02]} Kxe6 {[%emt 0:00:01]} 49. g3 {[%emt 0:00:59] aiming for gxh4.} hxg3 {[%emt 0:01:08]} 50. Rg1 {[%emt 0:00:09]} Nd7 {[%emt 0:00:44]} 51. Rxg3 {[%emt 0:00:49]} Nxe5 {[%emt 0:00:12]} 52. Ke3 $1 {[%emt 0:00:13]} Kf5 {[%emt 0:00:21] White must now prevent ...a5.} 53. Rg1 {[%emt 0:00:11]} (53. Rxg5+ $1 $11 Kxg5 54. f4+ Kg6 55. fxe5) 53... Nd3 {[%emt 0:00:40]} (53... Ng6 $15 54. Ra1 Ne5) 54. h4 {[%emt 0:00:52]} gxh4 {[%emt 0:00:16] Threatens to win with ...Ne5.} 55. Rg4 $1 {[%emt 0:00:02]} Ne1 {[%emt 0:01:39]} ({Don't play} 55... h3 $6 56. Rh4 $17) 56. Rf4+ $2 {[%emt 0:01:16] [#]} (56. Rg1 $1 $15 Nc2+ 57. Kd2) 56... Kg5 $2 {[%emt 0:00:10]} (56... Ke6 $1 $19 57. Re4+ Kd6 58. Rd4+ Kc5) 57. Rg4+ {[%emt 0:00:07]} Kh5 {[%emt 0:00:36][%cal Oe1f3]} 58. Rg7 {[%emt 0:00:16]} Nd3 {[%emt 0:00:37]} 59. f4 {[%emt 0:00:51] The position is equal.} h3 {[%emt 0:00:30]} 60. Rh7+ {[%emt 0:00:42]} Kg4 {[%emt 0:00:10]} 61. Rg7+ $1 {[%emt 0:00:02]} Kf5 {[%emt 0:01:05]} 62. Rg5+ {[%emt 0:00:10]} Kf6 {[%emt 0:00:21]} 63. Rh5 {[%emt 0:01:56] Weighted Error Value: White=0.26 (precise) /Black=0.27 (precise)} 1/2-1/2

[Event "15th Tashkent Open Agzamov 2022"]
[Site "Tashkent"]
[Date "2022.05.06"]
[Round "4.6"]
[White "Van Foreest, Lucas"]
[Black "Agmanov, Zhandos"]
[Result "1/2-1/2"]
[ECO "E06"]
[WhiteElo "2572"]
[BlackElo "2420"]
[Annotator "TA"]
[PlyCount "160"]
[EventDate "2022.05.05"]
[EventType "swiss"]
[EventCountry "UZB"]
[SourceTitle "playchess.com"]
[Source "ChessBase"]
[SourceQuality "1"]
[TimeControl "5400+30"]

{[%evp 12,160,31,25,24,24,16,-8,22,19,25,13,24,10,26,25,29,15,25,0,0,0,-7,-7,-5,-3,-4,-31,-29,-60,0,0,0,0,0,0,0,0,6,10,4,0,16,0,0,0,0,0,0,0,0,0,0,0,0,0,0,0,0,0,0,0,0,0,0,0,0,0,0,0,0,0,0,0,0,0,0,0,0,0,5,0,0,0,0,0,0,0,0,0,0,0,0,0,0,-18,0,0,0,0,12,18,37,37,37,37,37,23,19,13,13,13,14,14,43,43,43,43,90,41,82,0,0,0,8,8,8,8,8,8,8,0,0,0,8,8,8,8,8,8,8,8,8,8,8,0,0,0,0,0,0]} 1. d4 {[%emt 0:00:53]} Nf6 {[%emt 0:01:46]} 2. c4 {[%emt 0:00:08]} e6 {[%emt 0:00:23]} 3. Nf3 {[%emt 0:00:07]} d5 {[%emt 0:00:49]} 4. g3 {[%emt 0:00:05]} Be7 {[%emt 0:01:42]} 5. Bg2 {[%emt 0:00:12]} O-O {[%emt 0:00:07]} 6. Nc3 {[%emt 0:00:15]} c6 {[%emt 0:02:09]} 7. O-O {[%emt 0:01:04]} a5 {[%emt 0:00:08] E06: Closed Catalan: Early deviations.} 8. Nd2 {[%emt 0:05:54]} b5 {[%emt 0:01:12] [#]} 9. c5 $146 {[%emt 0:00:07]} ({Predecessor:} 9. b3 Ba6 10. Bb2 bxc4 11. bxc4 Nbd7 12. Qc2 Rb8 13. Rab1 Nb6 14. c5 Nc4 15. Nxc4 Bxc4 {½-½ (47) Dubov,D (2710)-Fressinet,L (2638) chess24.com INT 2021}) 9... b4 {[%emt 0:15:46]} 10. Na4 {[%emt 0:00:06]} Ba6 {[%emt 0:00:15]} 11. Re1 {[%emt 0:00:05]} Nbd7 {[%emt 0:00:41]} 12. e4 {[%emt 0:05:12]} dxe4 {[%emt 0:01:58]} 13. Nxe4 {[%emt 0:00:07]} Nxe4 {[%emt 0:00:05]} 14. Bxe4 {[%emt 0:00:11]} Bb5 {[%emt 0:00:22]} 15. Bg2 {[%emt 0:08:01]} ({Much worse is} 15. Qh5 Nf6 16. Qd1 Nxe4 17. Rxe4 Qd5 $17) (15. Qc2 $5 {[%cal Re4h7]}) 15... e5 {[%emt 0:09:36]} 16. Be3 {[%emt 0:16:36][%cal Oa4b6]} exd4 {[%emt 0:03:57]} 17. Bxd4 {[%emt 0:00:08]} Bxa4 {[%emt 0:01:40]} 18. Qxa4 {[%emt 0:00:09] [#] Hoping for Rad1.} Nxc5 {[%emt 0:01:02]} 19. Qd1 {[%emt 0:12:29]} Ne6 {[%emt 0:05:53]} 20. Be3 {[%emt 0:00:05]} (20. Bxc6 $2 Rc8 21. Bb7 Rb8 22. Rxe6 fxe6 $19) 20... Qxd1 {[%emt 0:02:06]} (20... Rc8 $15) 21. Raxd1 $11 {[%emt 0:09:41]} Rac8 {[%emt 0:12:24]} 22. Rd7 {[%emt 0:01:19]} Bf6 {[%emt 0:01:45]} 23. b3 {[%emt 0:00:05]} c5 {[%emt 0:06:49]} 24. Ra7 {[%emt 0:00:16]} Rfd8 {[%emt 0:00:46]} 25. Rxa5 {[%emt 0:00:24]} Nd4 {[%emt 0:11:36]} 26. Rf1 {[%emt 0:09:05]} Ne2+ {[%emt 0:00:59]} 27. Kh1 {[%emt 0:00:02]} Bd4 {[%emt 0:00:42]} 28. Bb7 {[%emt 0:09:58] This bishop pair is nice.} Rc7 {[%emt 0:05:04]} 29. Bf3 {[%emt 0:02:10]} Bxe3 {[%emt 0:00:41]} 30. Bxe2 {[%emt 0:00:05]} Bd4 {[%emt 0:00:19]} 31. Bc4 {[%emt 0:00:43]} Re7 {[%emt 0:05:57]} 32. Rd1 {[%emt 0:01:36][%cal Oa5c5]} Rde8 {[%emt 0:00:25]} 33. Kg2 {[%emt 0:00:05]} g6 {[%emt 0:00:27]} 34. a3 {[%emt 0:00:08]} bxa3 {[%emt 0:00:24]} 35. Rxa3 {[%emt 0:00:04]} Kg7 {[%emt 0:01:42]} 36. Ra6 {[%emt 0:00:02]} Rb8 {[%emt 0:00:28]} 37. Rd2 {[%emt 0:00:46]} Rbb7 {[%emt 0:00:12]} 38. Rda2 {[%emt 0:00:14]} h5 {[%emt 0:00:37]} 39. Ra8 {[%emt 0:21:23]} Rbd7 {[%emt 0:00:30]} 40. R2a6 {[%emt 0:00:00]} Re1 {[%emt 0:01:07]} 41. R8a7 {[%emt 0:00:00]} Ree7 {[%emt 0:00:07]} 42. Rxd7 {[%emt 0:00:00]} Rxd7 {[%emt 0:00:01][%mdl 4096] Endgame KRB-KRB} 43. f4 {[%emt 0:00:00]} Bf6 {[%emt 0:02:04]} 44. Kf3 {[%emt 0:00:00]} Re7 {[%emt 0:00:30]} 45. Rd6 {[%emt 0:00:00]} Bc3 {[%emt 0:01:53]} 46. Rc6 {[%emt 0:00:00]} Bd4 {[%emt 0:00:05]} 47. h3 {[%emt 0:00:00]} Re3+ {[%emt 0:01:03]} 48. Kg2 {[%emt 0:00:00]} h4 {[%emt 0:00:45]} 49. gxh4 {[%emt 0:00:00]} Re4 {[%emt 0:00:13]} 50. f5 {[%emt 0:00:00]} gxf5 {[%emt 0:00:42]} 51. h5 {[%emt 0:00:00]} Rh4 {[%emt 0:00:35]} 52. Be2 {[%emt 0:00:00]} Re4 {[%emt 0:01:52]} 53. Bf3 {[%emt 0:00:00]} Re6 {[%emt 0:00:14]} 54. Rc7 {[%emt 0:00:00]} Rd6 {[%emt 0:00:31]} 55. Be2 {[%emt 0:00:00]} Rf6 {[%emt 0:01:04]} 56. Bc4 {[%emt 0:00:00]} f4 {[%emt 0:00:09]} 57. Kf3 {[%emt 0:00:00]} Be3 {[%emt 0:00:05]} 58. Rd7 {[%emt 0:00:00]} Rf5 {[%emt 0:01:16]} 59. Kg4 {[%emt 0:00:00]} Rf6 {[%emt 0:00:05]} 60. Bd5 {[%emt 0:00:00]} f3 {[%emt 0:00:06]} 61. Bxf3 {[%emt 0:00:00]} Rf4+ {[%emt 0:00:00]} 62. Kg3 {[%emt 0:00:00]} Rf6 {[%emt 0:00:56]} 63. Be4 {[%emt 0:00:00]} Kh6 {[%emt 0:00:41]} 64. Bd5 {[%emt 0:00:00]} Bf4+ {[%emt 0:00:39]} (64... Kxh5 $14 65. Bxf7+ Kh6) 65. Kg2 {[%emt 0:00:00]} ({White should try} 65. Kg4 $16) 65... Rd6 {[%emt 0:00:22] [#]} 66. Rxf7 {[%emt 0:00:00]} (66. Rxd6+ $1 $16 Bxd6 67. Bxf7) 66... Rxd5 {[%emt 0:00:02] The position is equal.} 67. Rxf4 {[%emt 0:00:00]} Kxh5 $16 {[%emt 0:01:44] KR-KR} 68. Rc4 {[%emt 0:03:11]} Rd2+ {[%emt 0:01:26]} 69. Kf1 {[%emt 0:00:12]} Rd3 {[%emt 0:00:07][%csl LRb3,LRh3]} 70. Rxc5+ {[%emt 0:00:15]} Kg6 {[%emt 0:00:01]} 71. b4 {[%emt 0:01:01] And now h4 would win.} Rxh3 {[%emt 0:00:05]} 72. Ke2 {[%emt 0:00:49]} Kf6 {[%emt 0:00:17]} 73. Kd2 {[%emt 0:00:39]} Ke6 {[%emt 0:00:11]} 74. Kc2 {[%emt 0:00:22]} Kd6 {[%emt 0:00:04]} 75. Kb2 {[%emt 0:00:27]} Rg3 {[%emt 0:00:08]} 76. Rc2 {[%emt 0:00:39]} Kd7 {[%emt 0:00:14]} 77. Rc4 {[%emt 0:00:26]} Rh3 {[%emt 0:00:13]} 78. Rc3 {[%emt 0:00:21]} Rxc3 {[%emt 0:00:06]} 79. Kxc3 {[%emt 0:00:03]} Kc6 {[%emt 0:00:05]} 80. b5+ {[%emt 0:00:04]} Kxb5 {[%emt 0:05:18] Weighted Error Value: White=0.04 (flawless) /Black=0.04 (flawless)} 1/2-1/2